fUSD/lending_fUSD_20240317
["ID","MTS","AMOUNT","RATE_DAILY","PERIOD"]
[319327469,1710661868209,-500.0,0.00015342,2]
[319327470,1710661868220,-500.0,0.00015342,2]
[319327471,1710661868230,-500.0,0.00015342,2]
[319327472,1710661868240,-500.0,0.00015342,2]
[319327473,1710661868251,-601.26,0.00015342,2]
[319327474,1710661868260,-500.0,0.00015342,2]
[319327475,1710661868271,-601.26,0.00015342,2]
[319327476,1710661868282,-500.0,0.00015342,2]
[319327477,1710661868293,-601.26,0.00015342,2]
[319327478,1710661868303,-500.0,0.00015342,2]
[319327479,1710661868313,-601.26,0.00015342,2]
[319327480,1710661868324,-529.2,0.00015342,2]
[319327481,1710661868334,-601.26,0.00015342,2]
[319327482,1710661868344,-601.26,0.00015342,2]
[319327483,1710661868354,-601.26,0.00015342,2]
[319327484,1710661868364,-601.26,0.00015342,2]
[319327485,1710661868374,-601.26,0.00015342,2]
[319327486,1710661868384,-500.0,0.00015342,2]
[319327487,1710661868394,-601.26,0.00015342,2]
[319327488,1710661868404,-601.26,0.00015342,2]
[319327489,1710661868415,-601.26,0.00015342,2]
[319327490,1710661868425,-687.09,0.00015342,2]
[319327491,1710661868436,-687.09,0.00015342,2]
[319327492,1710661868446,-601.26,0.00015342,2]
[319327493,1710661868457,-601.26,0.00015342,2]
[319327494,1710661868467,-687.09,0.00015342,2]
[319327495,1710661868478,-500.0,0.00015342,2]
[319327496,1710661868489,-500.0,0.00015342,2]
[319327497,1710661868499,-500.0,0.00015342,2]
[319327498,1710661868510,-500.0,0.00015342,2]
[319327499,1710661868521,-500.0,0.00015342,2]
[319327500,1710661868531,-500.0,0.00015342,2]
[319327501,1710661868541,-557.1,0.00015342,2]
[319327502,1710661868552,-500.0,0.00015342,2]
[319327503,1710661868563,-500.0,0.00015342,2]
[319327504,1710661868574,-628.78,0.00015342,2]
[319327505,1710661868584,-1760.19,0.00015342,2]
[319327506,1710661868600,-1760.19,0.00015342,2]
[319327507,1710661868611,-1760.19,0.00015342,2]
[319327508,1710661868621,-500.0,0.00015342,2]
[319327509,1710661868631,-500.0,0.00015342,2]
[319327510,1710661868642,-1760.19,0.00015342,2]
[319327511,1710661868652,-500.0,0.00015342,2]
[319327512,1710661868664,-500.0,0.00015342,2]
[319327513,1710661868675,-1489.46476594,0.00015342,2]
[319327514,1710661868768,-590.0,0.00015342,2]
[319327515,1710661868779,-270.72523406,0.00015342,2]
[319327516,1710661868793,-500.0,0.00015342,2]
[319327517,1710661868803,-500.0,0.00015342,2]
[319327518,1710661868814,-500.0,0.00015342,2]
[319327519,1710661868826,-1760.19,0.00015342,2]
[319327520,1710661868837,-500.0,0.00015342,2]
[319327521,1710661868849,-500.0,0.00015342,2]
[319327522,1710661868860,-1760.19,0.00015342,2]
[319327523,1710661868871,-500.0,0.00015342,2]
[319327524,1710661868882,-500.0,0.00015342,2]
[319327525,1710661868892,-1760.19,0.00015342,2]
[319327526,1710661868902,-500.0,0.00015342,2]
[319327527,1710661868912,-500.0,0.00015342,2]
[319327528,1710661868923,-1760.19,0.00015342,2]
[319327529,1710661868938,-500.0,0.00015342,2]
[319327530,1710661868949,-1760.19,0.00015342,2]
[319327531,1710661868959,-1760.19,0.00015342,2]
[319327532,1710661868970,-1760.19,0.00015342,2]
[319327533,1710661868981,-1760.19,0.00015342,2]
[319327534,1710661868992,-1760.19,0.00015342,2]
[319327535,1710661869001,-500.0,0.00015342,2]
[319327536,1710661869011,-601.26,0.00015342,2]
[319327537,1710661869022,-500.0,0.00015342,2]
[319327538,1710661869032,-500.0,0.00015342,2]
[319327539,1710661869042,-520.47150938,0.00015342,2]
[319327540,1710661869053,-500.0,0.00015342,2]
[319327541,1710661869062,-500.0,0.00015342,2]
[319327542,1710661869072,-578.92254714,0.00015342,2]
[319327543,1710661869082,-500.0,0.00015342,2]
[319327544,1710661869095,-500.0,0.00015342,2]
[319327545,1710661869104,-500.0,0.00015342,2]
[319327546,1710661869114,-500.0,0.00015342,2]
[319327547,1710661869124,-500.0,0.00015342,2]
[319327548,1710661869135,-500.0,0.00015342,2]
[319327549,1710661869145,-500.0,0.00015342,2]
[319327550,1710661869202,-500.0,0.00015342,2]
[319327551,1710661869212,-326.26,0.00015342,2]
[319327552,1710661869223,-500.0,0.00015342,2]
[319327553,1710661869233,-500.0,0.00015342,2]
[319327554,1710661869243,-500.0,0.00015342,2]
[319327555,1710661869253,-500.0,0.00015342,2]
[319327556,1710661869263,-500.0,0.00015342,2]
[319327557,1710661869274,-500.0,0.00015342,2]
[319327558,1710661869284,-500.0,0.00015342,2]
[319327559,1710661869294,-500.0,0.00015342,2]
[319327560,1710661869304,-500.0,0.00015342,2]
[319327561,1710661869314,-500.0,0.00015342,2]
[319327562,1710661869324,-500.0,0.00015342,2]
[319327563,1710661869334,-823.84,0.00015342,2]
[319327564,1710661869345,-500.0,0.00015342,2]
[319327565,1710661869354,-823.84,0.00015342,2]
[319327566,1710661869364,-500.0,0.00015342,2]
[319327567,1710661869374,-388.87,0.00015342,2]
[319327568,1710661869385,-823.84,0.00015342,2]
[319327569,1710661869397,-500.0,0.00015342,2]
[319327570,1710661869407,-500.0,0.00015342,2]
[319327571,1710661869417,-823.84,0.00015342,2]
[319327572,1710661869428,-823.84,0.00015342,2]
[319327573,1710661869438,-500.0,0.00015342,2]
[319327574,1710661869448,-500.0,0.00015342,2]
[319327575,1710661869458,-823.84,0.00015342,2]
[319327576,1710661869469,-500.0,0.00015342,2]
[319327577,1710661869479,-823.84,0.00015342,2]
[319327578,1710661869489,-823.84,0.00015342,2]
[319327579,1710661869499,-823.84,0.00015342,2]
[319327580,1710661869510,-823.84,0.00015342,2]
[319327581,1710661869521,-823.84,0.00015342,2]
[319327582,1710661869530,-823.84,0.00015342,2]
[319327583,1710661869540,-531.87250211,0.00015342,2]
[319327584,1710661869550,-823.84,0.00015342,2]
[319327585,1710661869560,-500.0,0.00015342,2]
[319327586,1710661869570,-823.84,0.00015342,2]
[319327587,1710661869580,-500.0,0.00015342,2]
[319327588,1710661869590,-823.84,0.00015342,2]
[319327589,1710661869602,-500.0,0.00015342,2]
[319327590,1710661869612,-500.0,0.00015342,2]
[319327591,1710661869622,-500.0,0.00015342,2]
[319327592,1710661869632,-500.0,0.00015342,2]
[319327593,1710661869643,-500.0,0.00015342,2]
[319327594,1710661869652,-500.0,0.00015342,2]
[319327595,1710661869663,-500.0,0.00015342,2]
[319327596,1710661869672,-234.40964402,0.00015342,2]
[319327597,1710661869682,-500.0,0.00015342,2]
[319327598,1710661869691,-500.0,0.00015342,2]
[319327599,1710661869701,-500.0,0.00015342,2]
[319327600,1710661869711,-500.0,0.00015342,2]
[319327601,1710661869721,-479.58,0.00015342,2]
[319327602,1710661869731,-500.0,0.00015342,2]
[319327603,1710661869741,-500.0,0.00015342,2]
[319327604,1710661869750,-500.0,0.00015342,2]
[319327605,1710661869761,-500.0,0.00015342,2]
[319327606,1710661869771,-500.0,0.00015342,2]
[319327607,1710661869782,-500.0,0.00015342,2]
[319327608,1710661869794,-500.0,0.00015342,2]
[319327609,1710661869806,-500.0,0.00015342,2]
[319327610,1710661869824,-500.0,0.00015342,2]
[319327611,1710661869853,-500.0,0.00015342,2]
[319327612,1710661869877,-473.21,0.00015342,2]
[319327613,1710661869896,-470.33797197,0.00015342,2]
[319327614,1710661869921,-342.49461795,0.00015345,2]
[319327615,1710661869936,-150.0,0.00015345,2]
[319327616,1710661869947,-150.0,0.00015346,2]
[319327617,1710661869958,-705.0,0.00015346,2]
[319327618,1710661869981,-150.59441572,0.00015348,2]
[319327619,1710661869993,-150.0,0.00015351,2]
[319327620,1710661870004,-470.33797197,0.00015357,2]
[319327621,1710661870015,-150.0,0.00015357,2]
[319327622,1710661870026,-150.0,0.00015357,2]
[319327623,1710661870039,-150.0,0.00015359,2]
[319327624,1710661870049,-150.0,0.00015359,2]
[319327625,1710661870059,-299.17,0.00015359,2]
[319327626,1710661870070,-150.0,0.0001536,2]
[319327627,1710661870081,-150.0,0.00015362,2]
[319327628,1710661870092,-150.0,0.00015363,2]
[319327629,1710661870111,-1970.41958355,0.00015363,2]
[319327630,1710661870123,-150.0,0.00015364,2]
[319327631,1710661870134,-150.0,0.00015364,2]
[319327632,1710661870145,-150.0,0.00015364,2]
[319327633,1710661870170,-1069.29307327,0.00015364,2]
[319327634,1710661870206,-150.0,0.0001537,2]
[319327635,1710661870220,-470.33797197,0.00015371,2]
[319327636,1710661870234,-150.0,0.00015372,2]
[319327637,1710661870247,-150.0,0.00015373,2]
[319327638,1710661870265,-150.0,0.00015373,2]
[319327639,1710661870284,-150.0,0.00015374,2]
[319327640,1710661870297,-150.0,0.0001538,2]
[319327641,1710661870316,-150.0,0.0001538,2]
[319327642,1710661870337,-1500.0,0.00015382,2]
[319327643,1710661870358,-470.33797197,0.00015386,2]
[319327644,1710661870367,-150.0,0.00015387,2]
[319327645,1710661870377,-150.0,0.00015388,2]
[319327646,1710661870389,-342.07493897,0.0001539,2]
[319327647,1710661870400,-300.0,0.00015391,2]
[319327648,1710661870410,-150.0,0.00015392,2]
[319327649,1710661870419,-3968.02266254,0.00015396,2]
[319327650,1710661870429,-4098.31607305,0.00015396,2]
[319327651,1710661870440,-155.18562175,0.00015396,2]
[319327652,1710661870450,-155.11590042,0.00015396,2]
[319327653,1710661870460,-155.36734344,0.00015397,2]
[319327654,1710661870471,-155.60180387,0.00015397,2]
[319327655,1710661870480,-270.68703798,0.00015397,2]
[319327656,1710661870490,-150.0,0.00015397,2]
[319327657,1710661870501,-358.9869636,0.00015398,2]
[319327658,1710661870511,-11029.232,0.00015398,2]
[319327659,1710661870521,-150.0,0.00015399,2]
[319327660,1710661870531,-151.0,0.000154,2]
[319327661,1710661870541,-711.0,0.000154,2]
[319327662,1710661870551,-5800.0,0.000154,2]
[319327663,1710661870560,-14736.8395404,0.000154,2]
[319327664,1710661870570,-2921.0,0.000154,2]
[319327665,1710661870580,-470.33797197,0.000154,2]
[319327666,1710661870590,-150.0,0.000154,2]
[319327667,1710661870604,-1970.41958355,0.000154,2]
[319327668,1710661870614,-346.78,0.000154,2]
[319327669,1710661870625,-346.78,0.000154,2]
[319327670,1710661870635,-1000.0,0.000154,2]
[319327671,1710661870645,-901.25912824,0.000154,2]
[319327672,1710661870655,-150.0,0.00015401,2]
[319327673,1710661870665,-150.0,0.00015404,2]
[319327674,1710661870674,-150.0,0.00015406,2]
[319327675,1710661870683,-150.0,0.00015407,2]
[319327676,1710661870693,-150.0,0.00015407,2]
[319327677,1710661870715,-278.0,0.0001541,2]
[319327678,1710661870745,-357.0,0.0001541,2]
[319327679,1710661870760,-1780.56534434,0.0001541,2]
[319327680,1710661870779,-319.31465566,0.0001541,2]
[319327681,1710661870793,-44.48534432,0.00015412,2]
[319327682,1710661870811,-105.51465568,0.00015412,2]
[319327683,1710661870824,-150.0,0.00015413,2]
[319327684,1710661870836,-150.0,0.00015414,2]
[319327685,1710661870864,-150.0,0.00015417,2]
[319327686,1710661870874,-1500.0,0.00015419,2]
[319327687,1710661870883,-150.0,0.00015419,2]
[319327688,1710661870893,-500.0,0.00015423,2]
[319327689,1710661870902,-500.0,0.00015423,2]
[319327690,1710661870922,-500.0,0.00015423,2]
[319327691,1710661870933,-500.0,0.00015423,2]
[319327692,1710661870942,-500.0,0.00015423,2]
[319327693,1710661870952,-881.15,0.00015423,2]
[319327694,1710661870961,-509.61,0.00015423,2]
[319327695,1710661870978,-601.48,0.00015423,2]
[319327696,1710661870988,-500.0,0.00015423,2]
[319327697,1710661870997,-643.52,0.00015423,2]
[319327698,1710661871007,-500.0,0.00015423,2]
[319327699,1710661871017,-1241.90424432,0.00015423,2]
[319327700,1710661871028,-47.22575568,0.00015423,2]
[319327701,1710661871038,-1693.9,0.00015423,2]
[319327702,1710661871049,-500.0,0.00015423,2]
[319327703,1710661871059,-150.0,0.00015423,2]
[319327704,1710661871069,-1406.22,0.00015423,2]
[319327705,1710661871078,-189.27,0.00015423,2]
[319327706,1710661871087,-595.86,0.00015423,2]
[319327707,1710661871101,-500.0,0.00015423,2]
[319327708,1710661871110,-2096.08,0.00015423,2]
[319327709,1710661871120,-500.0,0.00015423,2]
[319327710,1710661871130,-1763.35,0.00015423,2]
[319327711,1710661871141,-1052.64,0.00015423,2]
[319327712,1710661871151,-500.0,0.00015423,2]
[319327713,1710661871161,-634.71,0.00015423,2]
[319327714,1710661871172,-500.0,0.00015423,2]
[319327715,1710661871181,-500.0,0.00015424,2]
[319327716,1710661871190,-500.0,0.00015424,2]
[319327717,1710661871200,-614.5,0.00015424,2]
[319327718,1710661871210,-1188.38,0.00015424,2]
[319327719,1710661871220,-500.0,0.00015424,2]
[319327720,1710661871230,-500.0,0.00015424,2]
[319327721,1710661871249,-500.0,0.00015424,2]
[319327722,1710661871259,-500.0,0.00015424,2]
[319327723,1710661871271,-563.41,0.00015424,2]
[319327724,1710661871296,-500.0,0.00015424,2]
[319327725,1710661871324,-301.49690497,0.00015424,2]
[319327726,1710661871342,-151.44012598,0.00015425,2]
[319327727,1710661871376,-150.0,0.00015425,2]
[319327728,1710661871392,-150.0,0.00015425,2]
[319327729,1710661871408,-150.0,0.00015438,2]
[319327730,1710661871418,-150.0,0.00015443,2]
[319327731,1710661871428,-150.0,0.00015444,2]
[319327732,1710661871437,-150.0,0.00015444,2]
[319327733,1710661871447,-199.25646515,0.00015446,2]
[319327734,1710661871456,-150.0,0.00015448,2]
[319327735,1710661871465,-150.0,0.00015449,2]
[319327736,1710661871474,-2155.07,0.00015452,2]
[319327737,1710661871484,-3187.13,0.00015452,2]
[319327738,1710661871493,-3638.32,0.00015452,2]
[319327739,1710661871502,-7582.74074822,0.00015452,2]
[319327744,1710662112811,448.0,0.00024,120]
[319327764,1710662760688,-424.08036166,0.00012004,2]
[319327765,1710662760718,-345.0,0.00012004,2]
[319327766,1710662760749,-702.64,0.00012005,2]
[319327767,1710662760782,-158.29232039,0.00012325,2]
[319327768,1710662760816,-214.35,0.00013644,2]
[319327769,1710662760846,-666.94,0.00013653,2]
[319327770,1710662760877,-4249.73,0.00013653,2]
[319327771,1710662760907,-188.39,0.0001371,2]
[319327772,1710662760937,-250.0,0.00013846,2]
[319327773,1710662760969,-440.04,0.0001387,2]
[319327774,1710662760999,-694.65,0.0001387,2]
[319327775,1710662761030,-174.26,0.00014001,2]
[319327776,1710662761064,-173.56,0.00014044,2]
[319327777,1710662761100,-336.51,0.00014044,2]
[319327778,1710662761141,-2687.77,0.0001416,2]
[319327779,1710662761176,-150.99,0.00014204,2]
[319327780,1710662761212,-561.37181,0.00014232,2]
[319327781,1710662761254,-702.64,0.00014268,2]
[319327782,1710662761293,-356.48,0.00014499,2]
[319327783,1710662761330,-307.23663179,0.00014499,2]
[319327784,1710662761366,-250.0,0.00014499,2]
[319327785,1710662761405,-157.0,0.00014547,2]
[319327786,1710662761441,-311.55875434,0.00014573,2]
[319327787,1710662761478,-157.0,0.00014575,2]
[319327788,1710662761513,-157.0,0.00014602,2]
[319327789,1710662761550,-157.0,0.0001463,2]
[319327790,1710662761586,-157.0,0.00014657,2]
[319327791,1710662762174,150.0,0.00013869,2]
[319327792,1710662762238,150.0,0.00013869,2]
[319327794,1710662782503,647.96,0.00014394,2]
[319327795,1710662788661,-160.0,0.00014684,2]
[319327796,1710662788691,-3142.0,0.00014996,2]
[319327797,1710662788720,-111656.71807899,0.00015,2]
[319327798,1710662788749,-1550.0,0.00015,3]
[319327799,1710662810048,-198.79396657,0.00015041,2]
[319327800,1710662810080,-152.9445,0.00015041,2]
[319327801,1710662810111,-12473.34436896,0.0001514,2]
[319327802,1710662810147,-70666.19908548,0.00015141,2]
[319327803,1710662819466,-3920.55012182,0.00015141,2]
[319327804,1710662840805,-96977.3658927,0.00015141,2]
[319327805,1710662840837,-100000.0,0.00015141,2]
[319327806,1710662840868,-202.20150576,0.00015233,2]
[319327807,1710662840900,-704.4349,0.00015242,2]
[319327808,1710662840934,-500.0,0.00015289,2]
[319327809,1710662840967,-1615.99770154,0.000153,2]
[319327810,1710662850483,-13.75092465,0.000153,2]
[319327811,1710662850513,-712.0,0.000153,2]
[319327812,1710662850542,-1452.0,0.000153,2]
[319327813,1710662850570,-414.85,0.000153,2]
[319327814,1710662850602,-162.38985885,0.00015341,2]
[319327815,1710662850631,-509.52799521,0.00015342,2]
[319327816,1710662850666,-500.0,0.00015342,2]
[319327817,1710662850698,-500.0,0.00015342,2]
[319327818,1710662850730,-500.0,0.00015342,2]
[319327819,1710662850762,-500.0,0.00015342,2]
[319327820,1710662850791,-500.0,0.00015342,2]
[319327821,1710662850822,-500.0,0.00015342,2]
[319327822,1710662850852,-500.0,0.00015342,2]
[319327823,1710662850882,-500.0,0.00015342,2]
[319327824,1710662850916,-550.52270227,0.00015342,2]
[319327825,1710662850948,-500.0,0.00015342,2]
[319327826,1710662850978,-500.0,0.00015342,2]
[319327827,1710662851008,-500.0,0.00015342,2]
[319327828,1710662851039,-500.0,0.00015342,2]
[319327829,1710662851070,-500.0,0.00015342,2]
[319327830,1710662851100,-500.0,0.00015342,2]
[319327831,1710662851130,-500.0,0.00015342,2]
[319327832,1710662851160,-500.0,0.00015342,2]
[319327833,1710662851191,-500.0,0.00015342,2]
[319327834,1710662851224,-500.0,0.00015342,2]
[319327835,1710662851253,-500.0,0.00015342,2]
[319327836,1710662851286,-500.0,0.00015342,2]
[319327837,1710662851314,-500.0,0.00015342,2]
[319327838,1710662851494,-500.0,0.00015342,2]
[319327839,1710662851525,-500.0,0.00015342,2]
[319327840,1710662851556,-500.0,0.00015342,2]
[319327841,1710662851587,-275.2,0.00015342,2]
[319327842,1710662851617,-590.22,0.00015342,2]
[319327843,1710662851648,-500.0,0.00015342,2]
[319327844,1710662851679,-500.0,0.00015342,2]
[319327845,1710662851711,-503.85244195,0.00015342,2]
[319327846,1710662851741,-500.0,0.00015342,2]
[319327847,1710662851771,-500.0,0.00015342,2]
[319327848,1710662851800,-500.0,0.00015342,2]
[319327849,1710662851830,-500.0,0.00015342,2]
[319327850,1710662851860,-500.0,0.00015342,2]
[319327851,1710662851889,-500.0,0.00015342,2]
[319327852,1710662851922,-500.0,0.00015342,2]
[319327853,1710662851952,-500.0,0.00015342,2]
[319327854,1710662851983,-500.0,0.00015342,2]
[319327855,1710662852015,-500.0,0.00015342,2]
[319327856,1710662852046,-500.0,0.00015342,2]
[319327857,1710662852077,-500.0,0.00015342,2]
[319327858,1710662852107,-500.0,0.00015342,2]
[319327859,1710662852143,-601.01,0.00015342,2]
[319327860,1710662852174,-507.57927641,0.00015342,2]
[319327861,1710662852206,-500.0,0.00015342,2]
[319327862,1710662852238,-503.58796402,0.00015342,2]
[319327863,1710662852268,-500.0,0.00015342,2]
[319327864,1710662852299,-399.08858727,0.00015342,2]
[319327865,1710662852328,-500.0,0.00015342,2]
[319327866,1710662852357,-500.0,0.00015342,2]
[319327867,1710662852385,-500.0,0.00015342,2]
[319327868,1710662852415,-500.0,0.00015342,2]
[319327869,1710662852443,-500.0,0.00015342,2]
[319327870,1710662852472,-500.0,0.00015342,2]
[319327871,1710662852500,-500.0,0.00015342,2]
[319327872,1710662852529,-500.0,0.00015342,2]
[319327873,1710662852558,-500.0,0.00015342,2]
[319327874,1710662852587,-500.0,0.00015342,2]
[319327875,1710662852616,-500.0,0.00015342,2]
[319327876,1710662852644,-500.0,0.00015342,2]
[319327877,1710662852674,-500.0,0.00015342,2]
[319327878,1710662852826,-500.0,0.00015342,2]
[319327879,1710662852855,-500.0,0.00015342,2]
[319327880,1710662852884,-500.0,0.00015342,2]
[319327881,1710662852914,-500.0,0.00015342,2]
[319327882,1710662852945,-500.0,0.00015342,2]
[319327883,1710662852973,-514.48790209,0.00015342,2]
[319327884,1710662853001,-500.0,0.00015342,2]
[319327885,1710662853030,-500.0,0.00015342,2]
[319327886,1710662853060,-500.0,0.00015342,2]
[319327887,1710662853089,-500.0,0.00015342,2]
[319327888,1710662853115,-628.40394897,0.00015342,2]
[319327889,1710662853145,-596.98,0.00015342,2]
[319327890,1710662853179,-500.0,0.00015342,2]
[319327891,1710662853214,-500.0,0.00015342,2]
[319327892,1710662853246,-500.0,0.00015342,2]
[319327893,1710662853274,-500.0,0.00015342,2]
[319327894,1710662853301,-520.75871566,0.00015342,2]
[319327895,1710662853329,-500.0,0.00015342,2]
[319327896,1710662853358,-500.0,0.00015342,2]
[319327897,1710662853387,-500.0,0.00015342,2]
[319327898,1710662853418,-500.0,0.00015342,2]
[319327899,1710662853446,-500.0,0.00015342,2]
[319327900,1710662853476,-500.0,0.00015342,2]
[319327901,1710662853505,-500.0,0.00015342,2]
[319327902,1710662853533,-500.0,0.00015342,2]
[319327903,1710662853561,-500.0,0.00015342,2]
[319327904,1710662853590,-500.0,0.00015342,2]
[319327905,1710662853618,-500.0,0.00015342,2]
[319327906,1710662853644,-500.0,0.00015342,2]
[319327907,1710662853674,-500.0,0.00015342,2]
[319327908,1710662853703,-500.0,0.00015342,2]
[319327909,1710662853740,-500.0,0.00015342,2]
[319327910,1710662853769,-500.0,0.00015342,2]
[319327911,1710662853798,-500.0,0.00015342,2]
[319327912,1710662853828,-500.0,0.00015342,2]
[319327913,1710662853856,-557.36,0.00015342,2]
[319327914,1710662853886,-541.35866372,0.00015342,2]
[319327915,1710662853919,-500.0,0.00015342,2]
[319327916,1710662853951,-500.0,0.00015342,2]
[319327917,1710662853981,-607.64774932,0.00015342,2]
[319327918,1710662854012,-500.0,0.00015342,2]
[319327919,1710662854167,-500.0,0.00015342,2]
[319327920,1710662854197,-500.0,0.00015342,2]
[319327921,1710662854229,-500.0,0.00015342,2]
[319327922,1710662854259,-500.0,0.00015342,2]
[319327923,1710662854288,-500.0,0.00015342,2]
[319327924,1710662854318,-500.0,0.00015342,2]
[319327925,1710662854347,-500.0,0.00015342,2]
[319327926,1710662854377,-500.0,0.00015342,2]
[319327927,1710662854406,-500.0,0.00015342,2]
[319327928,1710662854436,-500.0,0.00015342,2]
[319327929,1710662854465,-500.0,0.00015342,2]
[319327930,1710662854494,-500.0,0.00015342,2]
[319327931,1710662854524,-621.55644967,0.00015342,2]
[319327932,1710662854553,-507.4480295,0.00015342,2]
[319327933,1710662854583,-500.0,0.00015342,2]
[319327934,1710662854613,-500.0,0.00015342,2]
[319327935,1710662854640,-500.0,0.00015342,2]
[319327936,1710662854671,-500.0,0.00015342,2]
[319327937,1710662854702,-502.76047396,0.00015342,2]
[319327938,1710662854738,-500.0,0.00015342,2]
[319327939,1710662854775,-500.0,0.00015342,2]
[319327940,1710662854808,-500.0,0.00015342,2]
[319327941,1710662854840,-500.0,0.00015342,2]
[319327942,1710662854873,-560.83990549,0.00015342,2]
[319327943,1710662854904,-500.0,0.00015342,2]
[319327944,1710662854943,-500.0,0.00015342,2]
[319327945,1710662854976,-513.61026405,0.00015342,2]
[319327946,1710662855009,-500.0,0.00015342,2]
[319327947,1710662855043,-500.0,0.00015342,2]
[319327948,1710662855075,-500.0,0.00015342,2]
[319327949,1710662855110,-500.0,0.00015342,2]
[319327950,1710662855144,-470.96444152,0.00015342,2]
[319327951,1710662855177,-500.0,0.00015342,2]
[319327952,1710662855208,-500.0,0.00015342,2]
[319327953,1710662855243,-500.0,0.00015342,2]
[319327954,1710662855276,-620.93,0.00015342,2]
[319327955,1710662855309,-500.0,0.00015342,2]
[319327956,1710662855339,-500.0,0.00015342,2]
[319327957,1710662855369,-500.0,0.00015342,2]
[319327958,1710662855400,-500.0,0.00015342,2]
[319327959,1710662855556,-178.17939872,0.00015342,2]
[319327960,1710662855587,-500.0,0.00015342,2]
[319327961,1710662855617,-500.0,0.00015342,2]
[319327962,1710662855650,-500.85391768,0.00015342,2]
[319327963,1710662855680,-500.0,0.00015342,2]
[319327964,1710662855715,-500.0,0.00015342,2]
[319327965,1710662855745,-500.0,0.00015342,2]
[319327966,1710662855776,-500.0,0.00015342,2]
[319327967,1710662855806,-500.0,0.00015342,2]
[319327968,1710662855835,-500.0,0.00015342,2]
[319327969,1710662855869,-500.0,0.00015342,2]
[319327970,1710662855905,-500.0,0.00015342,2]
[319327971,1710662855938,-500.0,0.00015342,2]
[319327972,1710662855969,-500.0,0.00015342,2]
[319327973,1710662856000,-500.0,0.00015342,2]
[319327974,1710662856030,-500.0,0.00015342,2]
[319327975,1710662856060,-461.82,0.00015342,2]
[319327976,1710662856090,-500.0,0.00015342,2]
[319327977,1710662856121,-500.0,0.00015342,2]
[319327978,1710662856152,-500.0,0.00015342,2]
[319327979,1710662856183,-500.0,0.00015342,2]
[319327980,1710662856217,-500.0,0.00015342,2]
[319327981,1710662856249,-500.0,0.00015342,2]
[319327982,1710662856280,-500.0,0.00015342,2]
[319327983,1710662856318,-500.0,0.00015342,2]
[319327984,1710662856349,-500.0,0.00015342,2]
[319327985,1710662856379,-500.0,0.00015342,2]
[319327986,1710662856409,-500.0,0.00015342,2]
[319327987,1710662856441,-500.0,0.00015342,2]
[319327988,1710662856471,-500.0,0.00015342,2]
[319327989,1710662856502,-494.56168865,0.00015342,2]
[319327990,1710662856533,-383.27086149,0.00015342,2]
[319327991,1710662856568,-500.0,0.00015342,2]
[319327992,1710662856600,-500.0,0.00015342,2]